bitfinex/quotes_ETHUSD_20241003
["timestamp","ask_amount","ask_price","bid_price","bid_amount"]
[1727980443109,4.26739,2343.4,2343.1,0.7822]
[1727980443110,7.2675,2343.3,2343.1,0.7822]
[1727980443276,3.0,2343.3,2343.1,1.33639733]
[1727980443697,4.26739,2343.4,2343.1,1.33639733]
[1727980444206,4.26714,2343.5,2343.2,0.8287]
[1727980444705,0.8118,2344.3,2343.3,4.9102331]
[1727980444895,4.26649,2343.9,2343.5,4.26703]
[1727980445097,4.26649,2343.9,2343.6,0.813]
[1727980445405,4.26658,2343.8,2343.6,0.813]
[1727980446267,4.26675,2343.7,2343.6,0.813]
[1727980448413,4.26658,2343.8,2343.6,0.813]
[1727980448414,4.26662,2343.8,2343.6,0.813]
[1727980448570,4.26662,2343.8,2343.6,1.37013033]
[1727980448767,4.26662,2343.8,2343.6,0.813]
[1727980448967,4.26675,2343.7,2343.6,0.813]
[1727980449478,4.2666,2343.8,2343.6,0.813]
[1727980449702,4.26642,2343.9,2343.6,0.813]
[1727980449994,4.26587,2344.2,2343.8,0.8332]
[1727980450195,4.26569,2344.3,2344.0,0.8332]
[1727980450420,4.26558,2344.4,2344.0,5.09939]
[1727980450573,4.26546,2344.5,2344.1,4.26602]
[1727980450767,4.26546,2344.5,2344.0,5.09939]
[1727980450768,8.53088,2344.5,2344.3,0.831]
[1727980450978,4.26548,2344.4,2344.3,0.831]
[1727980451930,4.26602,2344.1,2344.0,0.7972]
[1727980452150,4.26602,2344.1,2343.5,11.72696]
[1727980452151,4.2664,2343.9,2343.6,0.7589]
[1727980452352,4.26673,2343.8,2343.6,0.7589]
[1727980452715,4.26614,2344.1,2343.6,0.7589]
[1727980452920,4.26622,2344.0,2343.7,0.7668]
[1727980454020,4.26626,2344.0,2343.7,0.7668]
[1727980454225,3.0,2344.1,2343.7,0.7668]
[1727980454425,3.0,2344.1,2343.7,5.03346]
[1727980454663,3.0,2344.1,2343.7,0.7668]
[1727980454664,4.26634,2344.0,2343.7,0.7668]
[1727980454964,4.26655,2343.9,2343.7,0.7668]
[1727980455678,7.26605,2344.1,2343.7,0.7668]
[1727980456339,11.5322,2344.1,2343.7,0.7668]
[1727980456567,4.26622,2344.0,2343.7,0.7668]
[1727980458738,7.26605,2344.1,2343.7,5.03355]
[1727980458967,4.26622,2344.0,2343.7,0.7668]
[1727980459205,7.26605,2344.1,2343.7,5.03353]
[1727980459334,7.26605,2344.1,2343.7,5.86577588]
[1727980459959,7.26593,2344.2,2343.8,4.26653]
[1727980460681,4.26603,2344.1,2343.7,5.86577588]
[1727980460887,4.26553,2344.4,2343.3,5.04444899]
[1727980461176,4.26577,2344.3,2344.0,0.8035]
[1727980461382,4.26508,2344.7,2344.0,0.8035]
[1727980461383,4.26529,2344.6,2344.0,0.8035]
[1727980461580,4.2655,2344.4,2344.0,5.06968]
[1727980461881,4.26515,2344.6,2344.1,4.26602]
[1727980462039,4.26515,2344.6,2344.2,0.7719]
[1727980462373,3.0,2344.4,2344.2,0.7719]
[1727980463708,3.0,2344.5,2344.2,5.03774]
[1727980463882,7.26537,2344.5,2344.2,0.7719]
[1727980467483,3.802,2345.0,2344.2,5.541514]
[1727980467676,4.26461,2344.9,2344.5,4.2653]
[1727980467877,0.7917,2345.3,2344.5,4.2653]
[1727980467878,4.26493,2344.7,2344.5,0.7978]
[1727980468973,4.26548,2344.4,2344.3,0.7978]
[1727980470066,1.218141,2344.9,2344.3,0.7978]
[1727980470067,4.26529,2344.6,2344.3,0.7978]
[1727980470312,4.26537,2344.5,2344.3,0.7978]
[1727980472108,4.26529,2344.6,2344.3,0.7978]
[1727980472410,8.53058,2344.6,2344.3,0.7978]
[1727980472906,4.26529,2344.6,2344.3,0.7978]
[1727980474299,4.2651,2344.7,2344.3,5.06338]
[1727980474471,4.26512,2344.6,2344.3,0.7978]
[1727980475281,8.53018,2344.7,2344.3,5.06346]
[1727980475979,8.53012,2344.7,2344.3,5.06346]
[1727980476315,4.26504,2344.7,2344.3,5.06346]
[1727980476502,5.32465641,2344.7,2344.3,5.06346]
[1727980478107,5.32465641,2344.7,2344.3,5.06337]
[1727980478413,5.32465641,2344.7,2344.3,9.32896]
[1727980478772,3.0,2344.7,2344.4,4.26546]
[1727980479075,3.0,2344.8,2344.5,4.26523]
[1727980479973,4.26387,2345.3,2344.8,4.26474]
[1727980479974,4.2639,2345.3,2344.8,4.26474]
[1727980480175,4.26359,2345.5,2345.0,5.08147]
[1727980480403,4.26372,2345.4,2345.0,5.08152]
[1727980480609,4.26372,2345.4,2345.0,5.08149]
[1727980480772,4.26358,2345.5,2345.0,5.08149]
[1727980480979,4.26358,2345.5,2345.0,9.34581]
[1727980480980,4.26367,2345.4,2345.0,9.34581]
[1727980481313,7.26393,2345.3,2345.0,0.8172]
[1727980481480,4.26419,2345.2,2344.8,0.8172]
[1727980481681,4.26421,2345.1,2344.8,0.8172]
[1727980481914,4.26448,2345.0,2344.8,0.8172]
[1727980482806,4.26459,2344.9,2344.5,5.06989]
[1727980483228,4.26441,2345.0,2344.5,9.33504]
[1727980483937,4.26441,2345.0,2344.6,4.26511]
[1727980484246,0.93534,2345.0,2344.5,0.8047]
[1727980484431,4.26464,2344.9,2344.5,5.06993]
[1727980484634,7.26442,2345.0,2344.6,4.26503]
[1727980485152,3.0,2345.0,2344.7,4.26486]
[1727980485328,7.26407,2345.2,2344.7,5.08766]
[1727980485537,7.26407,2345.2,2343.8,17.9214196]
[1727980485538,4.26362,2345.5,2344.6,4.09748661]
[1727980485736,0.819,2345.6,2345.0,0.8228]
[1727980485737,4.26382,2345.4,2345.0,0.8228]
[1727980485935,4.26385,2345.3,2345.0,0.8228]
[1727980488768,7.26379,2345.4,2345.0,0.8228]
[1727980488975,4.26384,2345.3,2345.0,0.8228]
[1727980489571,7.2637,2345.4,2345.0,5.08718]
[1727980489778,4.26355,2345.5,2345.2,0.811]
[1727980490833,4.26377,2345.4,2345.2,0.811]
[1727980492930,4.26355,2345.5,2345.2,0.811]
[1727980493449,4.26332,2345.6,2345.2,6.008866]
[1727980493649,7.26324,2345.7,2345.2,6.008866]
[1727980493650,4.26384,2345.3,2345.2,0.811]
[1727980493882,4.2637,2345.4,2345.2,0.811]
[1727980494589,7.2635,2345.5,2345.2,0.811]
[1727980495986,4.26374,2345.4,2345.2,0.811]
[1727980496288,4.26355,2345.5,2345.2,0.811]
[1727980496691,4.26384,2345.3,2345.2,0.811]
[1727980497397,4.2637,2345.4,2345.2,0.811]
[1727980497697,4.26384,2345.3,2345.2,0.811]
[1727980497992,1.15269,2345.5,2345.2,0.811]
[1727980498198,3.0,2345.5,2345.2,5.07502]
[1727980498709,7.26349,2345.5,2345.2,5.07502]
[1727980499065,7.26333,2345.6,2345.2,5.07502]
[1727980500634,7.26333,2345.6,2345.2,5.07491]
[1727980500813,3.0,2345.6,2345.2,0.811]
[1727980501110,4.26404,2345.2,2344.8,5.58133]
[1727980501268,4.26404,2345.2,2344.8,5.03133]
[1727980501799,4.26384,2345.3,2344.9,4.26449]
[1727980502003,8.5278,2345.3,2344.9,4.26449]
[1727980502305,4.26384,2345.3,2344.9,4.26449]
[1727980502895,4.2637,2345.4,2345.1,0.8096]
[1727980503566,3.0,2345.5,2345.1,0.8096]
[1727980503789,4.26155,2346.6,2345.1,0.8096]
[1727980503790,3.7845,2346.1,2345.5,5.07297]
[1727980504108,4.26233,2346.2,2345.8,0.8096]
[1727980504288,4.26223,2346.2,2345.8,0.8096]
[1727980504517,4.26256,2346.1,2345.8,0.8096]
[1727980504684,4.26261,2346.0,2345.8,0.8096]
[1727980505301,4.26261,2346.0,2345.3,0.8069]
[1727980505302,7.26292,2345.9,2345.3,0.8069]
[1727980505504,4.26333,2345.6,2345.3,0.8069]
[1727980506000,4.26356,2345.5,2345.3,0.8069]
[1727980508026,4.26439,2345.0,2344.9,0.763]
[1727980508399,4.26424,2345.1,2344.7,5.02792]
[1727980508613,1.256956,2345.4,2345.0,4.26423]
[1727980508614,3.0,2345.4,2345.0,4.26423]
[1727980508922,3.8211,2345.6,2345.1,0.8027]
[1727980509122,3.0,2345.4,2345.1,0.8027]
[1727980509322,3.0,2345.4,2345.1,5.0669]
[1727980510424,4.26369,2345.4,2345.1,0.8027]
[1727980510583,3.0,2345.3,2345.1,0.8027]
[1727980511226,4.26369,2345.4,2345.1,0.8027]
[1727980511587,4.26348,2345.5,2345.1,0.8027]
[1727980511588,4.2635,2345.5,2345.1,5.999979]
[1727980511999,5.07676,2345.8,2345.1,5.999979]
[1727980512000,4.26303,2345.8,2345.4,4.26363]
[1727980512725,8.52613,2345.8,2345.4,4.26363]
[1727980512935,4.26278,2345.9,2345.5,5.01957]
[1727980513318,3.0,2345.8,2345.5,5.01957]
[1727980513537,3.0,2345.8,2345.6,0.07912129]
[1727980513850,4.26269,2346.0,2345.7,0.7561]
[1727980514620,4.26266,2346.0,2345.7,0.7561]
[1727980515342,4.26275,2345.9,2345.7,0.7561]
[1727980517338,4.2624,2346.1,2345.7,0.7561]
[1727980517339,7.2626,2346.0,2345.7,1.7772226]
[1727980517937,7.2626,2346.0,2345.7,1.83783831]
[1727980518803,7.2626,2346.0,2345.7,1.7772226]
[1727980519135,7.2626,2346.0,2345.7,0.7561]
[1727980520466,4.26276,2345.9,2345.7,0.7561]
[1727980521327,3.0,2346.0,2345.3,0.8054]
[1727980521328,4.26337,2345.6,2345.3,0.8054]
[1727980521528,4.26349,2345.5,2345.3,0.8054]
[1727980521929,4.26366,2345.4,2345.1,1.713919]
[1727980522259,4.26349,2345.5,2345.1,5.978029]
[1727980524290,4.26338,2345.6,2345.2,1.0242329]
[1727980524584,4.2633,2345.6,2345.3,0.8024]
[1727980527486,3.0,2345.8,2345.3,0.8024]
[1727980527696,4.26259,2346.0,2345.6,5.0253]
[1727980527849,4.26259,2346.0,2345.7,1.01412719]
[1727980528669,4.26289,2345.9,2345.7,0.928875]
[1727980530391,4.26311,2345.8,2345.3,0.803]
[1727980530552,0.7985,2345.8,2345.3,0.803]
[1727980530751,0.7985,2345.8,2345.3,5.06679]
[1727980530752,4.26312,2345.7,2345.3,5.06679]
[1727980530950,8.52641,2345.7,2345.3,5.15205738]
[1727980531151,4.26312,2345.7,2345.3,5.15205738]
[1727980531990,0.7985,2346.0,2345.4,4.36422887]
[1727980532196,4.26279,2345.9,2345.6,0.803]
[1727980532401,8.52567,2345.9,2345.6,0.803]
[1727980532563,8.52567,2345.9,2345.7,0.10155173]
[1727980532890,4.26279,2345.9,2345.7,0.10155173]
[1727980533751,4.26293,2345.8,2345.7,0.10155173]
[1727980533948,7.26261,2346.0,2345.7,0.10155173]
[1727980534149,4.26283,2345.9,2345.7,0.10155173]
[1727980534564,11.5253,2346.0,2345.7,0.10155173]
[1727980534766,4.26261,2346.0,2345.7,0.10155173]
[1727980534967,4.2623,2346.2,2345.9,0.8242]
[1727980535357,0.7669,2346.5,2346.1,0.55]
[1727980535556,4.26155,2346.6,2346.2,5.0863]
[1727980535858,4.26155,2346.6,2346.2,5.18753246]
[1727980536052,4.26115,2346.8,2346.2,5.18753246]
[1727980536271,4.26106,2346.9,2346.5,0.7794]
[1727980536484,4.26105,2346.9,2346.5,0.7794]
[1727980536694,4.26115,2346.8,2346.6,0.1010473]
[1727980536860,4.2613,2346.7,2346.6,0.1010473]
[1727980537292,4.2617,2346.5,2346.2,0.7794]
[1727980537659,8.52347,2346.5,2346.2,0.7794]
[1727980537860,4.26194,2346.4,2346.2,0.7794]
[1727980538056,4.26194,2346.4,2346.1,7.46]
[1727980538057,4.26202,2346.3,2346.1,7.46]
[1727980538289,4.26202,2346.3,2346.0,0.7654]
[1727980538501,4.2624,2346.1,2345.8,0.8321]
[1727980538713,4.26231,2346.2,2345.8,0.8321]
[1727980539103,8.52466,2346.2,2345.8,0.8321]
[1727980539289,4.2623,2346.2,2345.8,0.8321]
[1727980539500,4.688332,2346.3,2345.8,5.09503]
[1727980539695,4.26224,2346.2,2345.8,5.09503]
[1727980540010,4.26224,2346.2,2345.8,0.8321]
[1727980540414,4.2624,2346.1,2345.8,0.8321]
[1727980540613,4.2624,2346.1,2345.8,0.91343351]
[1727980540990,4.688252,2346.3,2345.8,0.91343351]
[1727980541184,4.26224,2346.2,2345.8,0.8321]
[1727980541389,4.26224,2346.2,2345.8,5.09501]
[1727980542428,4.26224,2346.2,2345.8,5.17594276]
[1727980543220,4.26224,2346.2,2345.9,0.08524861]
[1727980544280,5.06452,2346.4,2345.9,0.08524861]
[1727980544281,3.0,2346.3,2345.9,0.08524861]
[1727980544485,7.26206,2346.3,2345.9,4.26275]
[1727980544996,3.0,2346.3,2346.1,0.7551]
[1727980545719,4.2617,2346.5,2346.1,6.00042]
[1727980546100,4.2617,2346.5,2346.2,0.07228358]
[1727980546300,4.26185,2346.4,2346.1,1.81095153]
[1727980546501,4.26179,2346.5,2346.2,0.55]
[1727980546941,0.7593,2346.9,2346.1,0.7551]
[1727980547207,8.524,2346.4,2346.1,0.7551]
[1727980547730,4.26199,2346.4,2346.2,0.10068541]
[1727980547896,8.52398,2346.4,2346.2,0.10068541]
[1727980548233,4.26198,2346.4,2346.2,0.10068541]
[1727980548439,0.37593,2346.8,2346.2,4.36278541]
[1727980548440,4.26165,2346.6,2346.2,4.36278541]
[1727980548728,4.26165,2346.6,2346.3,1.06178854]
[1727980548942,4.26138,2346.7,2346.3,5.32379854]
[1727980549091,4.26138,2346.7,2346.4,0.10059282]
[1727980549539,4.26138,2346.7,2346.5,0.7583]
[1727980549702,5.0171,2347.4,2346.6,4.2614]
[1727980549904,4.26061,2347.1,2346.7,4.3463913]
[1727980550203,4.26077,2347.0,2346.6,4.36190024]
[1727980550425,4.26077,2347.0,2346.8,0.10040768]
[1727980550625,4.26077,2347.0,2346.6,8.52281]
[1727980550824,4.26077,2347.0,2346.7,0.10045396]
[1727980552413,4.26102,2346.9,2346.7,0.10045396]
[1727980552618,4.26102,2346.9,2346.5,5.01987]
[1727980552619,4.26102,2346.9,2346.6,0.55]
[1727980552911,4.26102,2346.9,2346.7,0.10045396]
[1727980553519,4.26102,2346.9,2346.6,0.55]
[1727980553719,4.26102,2346.9,2346.6,1.63087049]
[1727980554140,4.2607,2347.1,2346.6,1.63087049]
[1727980554454,4.26096,2346.9,2346.6,1.63087049]
[1727980555337,4.26056,2347.2,2346.6,5.89235049]
[1727980555338,4.26078,2347.0,2346.6,5.89235049]
[1727980555822,8.52166,2347.0,2346.6,5.89235049]
[1727980556145,4.26078,2347.0,2346.6,5.89235049]
[1727980556317,4.26078,2347.0,2346.7,0.66506505]
[1727980557050,4.26063,2347.1,2346.7,4.92625505]
[1727980558252,4.26063,2347.1,2346.7,4.26119]
[1727980558932,3.0,2347.1,2346.7,4.26114]
[1727980559247,3.0,2347.1,2346.8,4.26111]
[1727980559416,3.0,2347.1,2346.9,0.7705]
[1727980560121,4.26075,2347.0,2346.8,0.55]
[1727980560344,4.26064,2347.1,2346.8,0.55]
[1727980560654,7.26039,2347.2,2346.8,4.8111]
[1727980561167,0.8325,2346.9,2346.4,0.7705]
[1727980561338,4.26115,2346.8,2346.4,5.03218]
[1727980561665,4.26115,2346.8,2346.4,9.2939]
[1727980562430,4.26115,2346.8,2346.4,5.03218]
[1727980562768,4.26115,2346.8,2346.5,0.10010409]
[1727980563127,8.5224,2346.8,2346.5,0.10010409]
[1727980563372,4.26115,2346.8,2346.5,0.10010409]
[1727980565730,3.8325,2347.1,2346.6,4.81141]
[1727980565929,7.26066,2347.1,2346.8,0.55]
[1727980566352,5.06683,2347.0,2346.9,0.09998574]
[1727980566664,4.26099,2346.9,2346.6,0.55]
[1727980566825,4.26099,2346.9,2346.7,0.10007829]
[1727980567776,3.8249,2347.3,2346.8,4.81111]
[1727980567958,3.8249,2347.3,2346.9,5.07935]
[1727980567959,3.0,2347.2,2346.9,5.07935]
[1727980568157,3.0,2347.2,2346.9,5.17929399]
[1727980568567,7.2604,2347.2,2346.9,0.91844399]
[1727980568770,4.26064,2347.1,2346.9,0.91844399]
[1727980568945,4.26064,2347.1,2346.9,0.09994399]
[1727980569148,11.52089,2347.2,2346.9,0.09994399]
[1727980569495,7.2604,2347.2,2346.9,0.09994399]
[1727980570086,4.26058,2347.1,2346.9,0.09994399]
[1727980570773,5.04498,2347.1,2346.9,0.09994399]
[1727980570970,4.26075,2347.0,2346.9,0.09994399]
[1727980571179,4.26133,2346.7,2346.4,0.89632818]
[1727980571348,4.26133,2346.7,2346.4,0.8111]
[1727980571543,4.26118,2346.8,2346.5,0.10007069]
[1727980571750,4.261,2346.9,2346.5,4.36165069]
[1727980571951,4.26085,2347.0,2346.6,4.26146]
[1727980572150,4.26085,2347.0,2346.7,0.55]
[1727980572374,4.26065,2347.1,2346.8,0.7863]
[1727980572558,4.26065,2347.1,2346.8,5.04739]
[1727980572763,4.26065,2347.1,2346.9,0.09996903]
[1727980573685,3.0,2347.1,2346.9,0.09996903]
[1727980574902,3.0,2347.1,2347.0,0.55]
[1727980575193,3.0,2347.3,2347.1,0.8208]
[1727980575545,4.26012,2347.4,2347.2,0.09971757]
[1727980575788,4.25974,2347.6,2347.3,0.55]
[1727980576143,4.25974,2347.6,2347.4,0.09962506]
[1727980576315,4.25939,2347.8,2347.5,1.3129]
[1727980576686,4.25912,2347.9,2347.5,1.3129]
[1727980576687,4.25912,2347.9,2347.7,0.55]
[1727980577326,4.25896,2348.0,2347.8,0.09936916]
[1727980577515,4.25912,2347.9,2347.8,0.09936916]
[1727980577930,4.25966,2347.7,2347.4,0.55]
[1727980578116,0.781,2347.7,2347.1,0.7907]
[1727980578443,4.26022,2347.3,2347.2,0.55]
[1727980578737,4.26006,2347.4,2347.2,0.55]
[1727980579086,4.25995,2347.5,2347.2,0.55]
[1727980579389,4.26007,2347.4,2347.2,0.55]
[1727980579625,4.26021,2347.3,2347.2,0.55]
[1727980579924,4.26006,2347.4,2347.2,0.55]
[1727980581295,4.26006,2347.4,2346.7,0.7907]
[1727980581296,4.26039,2347.2,2346.7,0.7907]
[1727980581481,0.781,2347.3,2346.7,0.7907]
[1727980581482,4.26061,2347.1,2346.7,5.05191]
[1727980581887,4.26044,2347.2,2346.8,4.26111]
[1727980582127,4.26044,2347.2,2346.8,4.34632381]
[1727980582488,8.52097,2347.2,2346.8,4.34632381]
[1727980582690,4.26058,2347.1,2346.8,0.08521381]
[1727980583517,4.2608,2347.0,2346.7,0.7907]
[1727980583835,4.26116,2346.8,2346.5,0.7907]
[1727980583995,4.26156,2346.6,2346.3,8.2507]
[1727980584196,4.26156,2346.6,2346.3,0.7907]
[1727980584396,4.26166,2346.5,2346.3,0.7907]
[1727980584691,4.26191,2346.4,2346.0,0.8271]
[1727980585007,4.26191,2346.4,2346.0,5.08965]
[1727980585633,5.07778,2346.5,2346.1,4.26238]
[1727980585867,0.8161,2346.5,2346.1,4.26238]
[1727980585996,4.2616,2346.6,2346.1,4.26238]
[1727980585997,4.26158,2346.6,2346.2,4.771068]
[1727980587913,4.26158,2346.6,2346.2,0.508948]
[1727980588121,8.52319,2346.6,2346.2,0.55]
[1727980588320,4.26158,2346.6,2346.2,0.55]
[1727980588494,4.26168,2346.5,2346.2,0.55]
[1727980590327,3.7843,2346.4,2345.4,2.1118696]
[1727980590646,4.26276,2345.9,2345.4,5.0605]
[1727980591300,3.0,2346.1,2345.4,0.797]
[1727980591521,4.26301,2345.8,2345.4,0.797]
[1727980591738,4.26318,2345.7,2345.4,0.797]
[1727980592335,4.26301,2345.8,2345.4,0.797]
[1727980592512,5.04472,2346.0,2345.4,0.797]
[1727980592716,3.0,2346.1,2345.7,0.55]
[1727980592717,7.26242,2346.1,2345.7,0.55]
[1727980593340,7.26242,2346.1,2345.8,0.08532238]
[1727980593847,4.26194,2346.4,2346.0,4.26247]
[1727980594146,4.26205,2346.3,2346.1,0.08518345]
[1727980594502,4.26221,2346.2,2345.8,4.81283]
[1727980594822,4.26189,2346.4,2345.9,0.08527607]
[1727980595025,4.26206,2346.3,2345.9,4.34798607]
[1727980595225,4.26206,2346.3,2345.9,0.08527607]
[1727980595433,4.26206,2346.3,2345.9,0.65320668]
[1727980595799,4.26206,2346.3,2345.9,4.91593668]
[1727980596098,4.26206,2346.3,2345.9,0.65320668]
[1727980596599,3.7701,2346.6,2346.0,4.81257]
[1727980596600,4.26187,2346.4,2346.0,4.81257]
[1727980596806,4.26187,2346.4,2346.1,0.7948]
[1727980597002,4.26187,2346.4,2346.2,0.560737]
[1727980597202,4.26187,2346.4,2346.1,0.87998345]
[1727980597203,4.26187,2346.4,2346.3,0.08509085]
[1727980597403,4.26187,2346.4,2346.1,0.7948]
[1727980597899,4.26187,2346.4,2346.2,0.08513715]
[1727980598103,4.26202,2346.3,2346.2,0.08513715]
[1727980598551,4.26187,2346.4,2346.2,0.08513715]
[1727980598919,8.52386,2346.4,2346.2,0.08513715]
[1727980602164,4.26187,2346.4,2346.2,0.08513715]
[1727980602376,8.52388,2346.4,2346.2,0.08513715]
[1727980602515,4.26202,2346.3,2346.2,0.08513715]
[1727980603419,4.26202,2346.3,2345.9,0.8306]
[1727980603766,4.26221,2346.2,2346.0,0.08531299]
[1727980606321,4.26239,2346.1,2346.0,0.08531299]
[1727980607953,4.26204,2346.3,2346.0,0.08531299]
[1727980608150,4.26223,2346.2,2346.0,0.08531299]
[1727980613039,4.26239,2346.1,2345.6,0.8229]
[1727980613237,8.02515,2346.4,2346.0,4.2625]
[1727980613454,7.26195,2346.4,2346.1,0.0854498]
[1727980614807,4.26202,2346.3,2346.1,0.0854498]
[1727980615067,4.26221,2346.2,2346.1,0.0854498]
[1727980615430,4.26243,2346.1,2345.7,5.0326]
[1727980615631,4.26243,2346.1,2345.8,0.63560121]
[1727980616460,4.26224,2346.2,2345.8,4.89851121]
[1727980616969,3.8141,2346.4,2346.0,4.81256]
[1727980616970,7.26188,2346.4,2346.0,4.81256]
[1727980617268,7.26188,2346.4,2346.1,0.7616]
[1727980617467,4.26212,2346.3,2346.2,0.08544511]
[1727980617774,7.26212,2346.3,2346.2,0.08544511]
[1727980619043,7.26212,2346.3,2346.0,0.55]
[1727980619332,7.26212,2346.3,2346.1,0.08544979]
[1727980620376,4.26221,2346.2,2346.1,0.08544979]
[1727980620875,4.26221,2346.2,2346.1,0.08546644]
[1727980621081,4.26221,2346.2,2345.9,0.8069]
[1727980621290,4.26239,2346.1,2346.0,0.08551275]
[1727980622788,7.26239,2346.1,2346.0,0.08551275]
[1727980623074,7.26239,2346.1,2345.7,0.7584]
[1727980623075,8.49694,2346.1,2345.8,0.55]
[1727980623284,4.2628,2345.9,2345.8,0.55]
[1727980623590,4.2628,2345.9,2345.6,0.55]
[1727980623759,7.26239,2346.1,2345.6,0.55]
[1727980623955,4.26276,2345.9,2345.6,0.55]
[1727980624151,4.26276,2345.9,2345.6,1.113885]
[1727980624357,4.2626,2346.0,2345.6,5.377115]
[1727980624786,4.26277,2345.9,2345.6,1.113885]
[1727980625678,4.26261,2346.0,2345.6,5.377185]
[1727980625885,4.26261,2346.0,2345.6,1.113885]
[1727980626070,4.26277,2345.9,2345.6,0.55]
[1727980626646,4.26306,2345.8,2345.6,0.55]
[1727980628198,4.26279,2345.9,2345.6,0.55]
[1727980630686,3.8209,2346.2,2345.6,0.55]
[1727980630850,4.26283,2345.9,2345.6,0.55]
[1727980632804,4.26319,2345.7,2345.3,0.7885]
[1727980633092,8.52639,2345.7,2345.4,0.55]
[1727980633403,4.26348,2345.5,2345.1,5.05263]
[1727980633687,0.7609,2345.8,2345.1,5.05263]
[1727980633688,4.2637,2345.4,2345.2,0.55]
[1727980633894,4.26355,2345.5,2345.2,0.55]
[1727980634247,4.26377,2345.4,2345.2,0.55]
[1727980635083,4.26355,2345.5,2345.2,0.55]
[1727980637500,0.7609,2345.8,2345.2,0.55]
[1727980637501,4.26295,2345.8,2345.4,0.55]
[1727980637800,11.57161,2346.6,2345.6,4.81323]
[1727980637801,4.26259,2346.0,2345.6,4.81323]
[1727980638002,4.26259,2346.0,2345.6,4.89848689]
[1727980638186,4.26259,2346.0,2345.7,0.07773687]
[1727980638866,4.26249,2346.1,2345.9,0.7683]
[1727980639087,4.26249,2346.1,2346.0,0.07746468]
[1727980642120,3.0,2346.4,2346.0,0.07746468]
[1727980642305,7.26186,2346.4,2346.0,4.34002468]
[1727980642666,0.758,2346.8,2346.1,0.55]
[1727980642875,4.26138,2346.7,2346.3,4.81194]
[1727980643073,4.26138,2346.7,2346.3,0.55]
[1727980643074,4.26149,2346.6,2346.3,0.55]
[1727980643274,4.26149,2346.6,2346.5,0.55]
[1727980643482,4.26132,2346.7,2346.5,0.55]
[1727980643707,4.26132,2346.7,2346.5,0.62708332]
[1727980643912,5.01926,2346.8,2346.5,0.62708332]
[1727980644323,4.26136,2346.7,2346.5,0.62708332]
[1727980644497,4.26136,2346.7,2346.5,1.11599065]
[1727980645027,5.01915,2346.8,2346.5,1.11599065]
[1727980645178,5.22572319,2347.5,2346.6,0.7915]
[1727980645179,4.26075,2347.1,2346.6,0.7915]
[1727980645386,8.52147,2347.1,2346.7,0.55]
[1727980645595,4.26033,2347.3,2346.8,4.26101]
[1727980645801,4.70476263,2347.7,2347.1,0.55]
[1727980645802,0.824,2347.6,2347.1,0.55]
[1727980646142,0.44515263,2347.7,2347.2,4.33673234]
[1727980646143,4.25959,2347.7,2347.2,4.33673234]
[1727980646423,4.25911,2348.0,2347.6,5.03946]
[1727980646627,1.21586749,2348.3,2347.7,0.55]
[1727980646628,0.7707,2348.3,2347.7,0.55]
[1727980646824,4.2593,2347.8,2347.7,0.62578337]
[1727980647192,4.2593,2347.8,2347.7,0.07578337]
[1727980647429,5.111143,2347.8,2347.7,0.07578337]
[1727980647589,4.25962,2347.7,2347.4,0.55]
[1727980648189,4.2593,2347.8,2347.4,4.81003]
[1727980648432,4.2593,2347.8,2347.4,0.55]
[1727980648646,4.2593,2347.8,2347.4,4.80999]
[1727980648923,4.2593,2347.8,2347.4,6.540982]
[1727980649499,8.5187,2347.8,2347.4,2.280992]
[1727980649787,4.2593,2347.8,2347.4,2.280992]
[1727980649991,4.25906,2348.0,2347.4,0.55]
[1727980649992,4.25975,2347.6,2347.4,0.55]
[1727980650183,8.51952,2347.6,2347.2,0.55]
[1727980650413,4.25975,2347.6,2347.2,0.55]
[1727980650613,3.0,2347.4,2347.0,8.222]
[1727980650956,4.26023,2347.3,2346.8,5.25513445]
[1727980651163,4.26021,2347.4,2346.9,5.14815472]
[1727980651373,4.26016,2347.4,2346.9,5.14815472]
[1727980651512,4.26016,2347.4,2346.8,5.25513445]
[1727980651513,4.26051,2347.2,2346.8,0.99403445]
[1727980651713,0.8148,2347.5,2346.9,4.26089]
[1727980651714,4.26005,2347.4,2346.9,4.26089]
[1727980652021,4.26021,2347.3,2346.9,4.26089]
[1727980652537,4.26044,2347.2,2347.0,0.0759367]
[1727980652848,4.26044,2347.2,2346.8,5.25499445]
[1727980653059,4.26044,2347.2,2347.1,0.07589043]
[1727980653206,4.26044,2347.2,2346.8,4.26096]
[1727980653415,7.26039,2347.2,2347.1,0.07589043]
[1727980653651,4.26078,2347.0,2346.7,0.7672]
[1727980655052,3.0,2347.1,2346.8,4.26111]
[1727980655351,3.0,2347.1,2346.8,0.55]
[1727980657925,7.26022,2347.3,2346.8,5.368949]
[1727980658134,0.7689,2347.8,2347.1,0.55]
[1727980658311,4.25968,2347.6,2347.2,5.03499]
[1727980658511,4.25968,2347.6,2347.2,6.019534]
[1727980658955,4.25951,2347.7,2347.2,6.019534]
[1727980659168,4.25909,2348.0,2347.5,0.55]
[1727980659314,4.25896,2348.0,2347.6,4.25966]
[1727980659654,4.25878,2348.1,2347.7,5.58416]
[1727980660522,4.25913,2347.9,2347.7,0.55]
[1727980660725,4.25985,2347.5,2347.3,0.7747]
[1727980662014,4.25968,2347.6,2347.3,0.7747]